[Event "*** Qualifier 3: Titled Tuesday 3|2 Blitz"]
[Site "Chess.com"]
[Date "2017.04.18"]
[Round "6"]
[White "Indianlad"]
[Black "Izoria123"]
[Result "1-0"]
[WhiteElo "2735"]
[BlackElo "2649"]
[TimeControl "180+2"]
[EndTime "14:20:11 PDT"]
[Termination "Indianlad won on time"]

1. d4 {[%clk 0:03:02]} 1... Nf6 {[%clk 0:03:00.4]} 2. Nf3 {[%clk 0:03:01.6]}
2... g6 {[%clk 0:03:00.7]} 3. c4 {[%clk 0:03:01]} 3... Bg7 {[%clk 0:03:01.4]} 4.
g3 {[%clk 0:03:02.4]} 4... c5 {[%clk 0:03:01.1]} 5. Nc3 {[%clk 0:03:03.2]} 5...
cxd4 {[%clk 0:02:59.2]} 6. Nxd4 {[%clk 0:03:04]} 6... O-O {[%clk 0:03:00.4]} 7.
Bg2 {[%clk 0:03:04.8]} 7... Qc7 {[%clk 0:02:59.8]} 8. Qd3 {[%clk 0:03:05.8]}
8... Nc6 {[%clk 0:02:58.3]} 9. O-O {[%clk 0:03:07.3]} 9... Nxd4 {[%clk
0:02:46.5]} 10. Qxd4 {[%clk 0:03:08.1]} 10... d6 {[%clk 0:02:48.4]} 11. b3
{[%clk 0:02:39.9]} 11... Bd7 {[%clk 0:02:32.2]} 12. Bb2 {[%clk 0:02:37.2]} 12...
Bc6 {[%clk 0:02:33.5]} 13. Rac1 {[%clk 0:02:31.3]} 13... Rfc8 {[%clk 0:02:24.6]}
14. Bh3 {[%clk 0:01:50.7]} 14... Bd7 {[%clk 0:00:48.1]} 15. Nd5 {[%clk
0:01:46.2]} 15... Qd8 {[%clk 0:00:49.3]} 16. Bxd7 {[%clk 0:01:46.5]} 16... Qxd7
{[%clk 0:00:51.2]} 17. Rfd1 {[%clk 0:01:47.9]} 17... Rc6 {[%clk 0:00:45.4]} 18.
Qd2 {[%clk 0:01:24.5]} 18... Nxd5 {[%clk 0:00:45.1]} 19. Bxg7 {[%clk 0:01:25.4]}
19... Kxg7 {[%clk 0:00:40.3]} 20. cxd5 {[%clk 0:01:26.6]} 20... Rxc1 {[%clk
0:00:17.2]} 21. Rxc1 {[%clk 0:01:28.5]} 21... Kg8 {[%clk 0:00:14.4]} 22. Qc3
{[%clk 0:01:21.3]} 22... a6 {[%clk 0:00:12.9]} 23. Qc7 {[%clk 0:01:19.9]} 23...
Rd8 {[%clk 0:00:14.1]} 24. e4 {[%clk 0:01:18]} 24... f6 {[%clk 0:00:14.8]} 25.
Qxd7 {[%clk 0:01:13.4]} 25... Rxd7 {[%clk 0:00:16.3]} 26. Rc8+ {[%clk 0:01:15]}
26... Kf7 {[%clk 0:00:17.3]} 27. f4 {[%clk 0:01:15.4]} 27... e6 {[%clk
0:00:14.3]} 28. Rh8 {[%clk 0:01:14.2]} 28... Kg7 {[%clk 0:00:14.2]} 29. dxe6
{[%clk 0:01:14.4]} 29... Re7 {[%clk 0:00:15.8]} 30. Rd8 {[%clk 0:01:15.9]} 30...
Rxe6 {[%clk 0:00:15.7]} 31. Rd7+ {[%clk 0:01:17.3]} 31... Kh6 {[%clk 0:00:13.4]}
32. Rxb7 {[%clk 0:01:14.7]} 32... Rxe4 {[%clk 0:00:14.6]} 33. Kf2 {[%clk
0:01:15.1]} 33... Rd4 {[%clk 0:00:14.7]} 34. a4 {[%clk 0:01:13.4]} 34... g5
{[%clk 0:00:11.5]} 35. fxg5+ {[%clk 0:01:13]} 35... Kxg5 {[%clk 0:00:11.4]} 36.
Rb6 {[%clk 0:01:04.3]} 36... Rd3 {[%clk 0:00:12]} 37. b4 {[%clk 0:01:04.9]}
37... Rb3 {[%clk 0:00:11.4]} 38. b5 {[%clk 0:00:52.1]} 38... axb5 {[%clk
0:00:11.7]} 39. Rxb5+ {[%clk 0:00:53]} 1-0

[Event "*** Qualifier 3: Titled Tuesday 3|2 Blitz"]
[Site "Chess.com"]
[Date "2017.04.18"]
[Round "6"]
[White "grzechu96"]
[Black "GMMarcinDziuba"]
[Result "0-1"]
[WhiteElo "2387"]
[BlackElo "2537"]
[TimeControl "180+2"]
[EndTime "14:20:36 PDT"]
[Termination "GMMarcinDziuba won by resignation"]

1. e4 {[%clk 0:03:02]} 1... c6 {[%clk 0:03:00.9]} 2. d4 {[%clk 0:03:02.8]} 2...
d5 {[%clk 0:03:02.8]} 3. Nc3 {[%clk 0:03:04.5]} 3... dxe4 {[%clk 0:03:03.6]} 4.
Nxe4 {[%clk 0:03:06.4]} 4... Bf5 {[%clk 0:03:05.2]} 5. Ng3 {[%clk 0:03:08.1]}
5... Bg6 {[%clk 0:03:06.8]} 6. h4 {[%clk 0:03:09.9]} 6... h6 {[%clk 0:03:07.8]}
7. Nf3 {[%clk 0:03:11.6]} 7... Nd7 {[%clk 0:03:09.2]} 8. h5 {[%clk 0:03:12.9]}
8... Bh7 {[%clk 0:03:10.9]} 9. Bd3 {[%clk 0:03:14.8]} 9... Bxd3 {[%clk
0:03:12.5]} 10. Qxd3 {[%clk 0:03:16.7]} 10... e6 {[%clk 0:03:14]} 11. Bd2 {[%clk
0:03:18.1]} 11... Ngf6 {[%clk 0:03:14.7]} 12. O-O-O {[%clk 0:03:19.8]} 12... Be7
{[%clk 0:03:16.2]} 13. Kb1 {[%clk 0:03:20.8]} 13... c5 {[%clk 0:03:15.4]} 14. d5
{[%clk 0:03:20.2]} 14... Nxd5 {[%clk 0:03:16.2]} 15. Nf5 {[%clk 0:03:21.4]}
15... O-O {[%clk 0:03:05.6]} 16. Nxh6+ {[%clk 0:03:22.6]} 16... gxh6 {[%clk
0:03:06.4]} 17. c4 {[%clk 0:03:24.3]} 17... Nb4 {[%clk 0:02:38.9]} 18. Bxb4
{[%clk 0:03:16.2]} 18... cxb4 {[%clk 0:02:40.8]} 19. Qxd7 {[%clk 0:03:17.9]}
19... Qxd7 {[%clk 0:02:27.8]} 20. Rxd7 {[%clk 0:03:19.8]} 20... Bc5 {[%clk
0:02:29.4]} 21. Rxb7 {[%clk 0:03:00.9]} 21... a5 {[%clk 0:02:21.1]} 22. Ne5
{[%clk 0:02:51.8]} 22... Bxf2 {[%clk 0:02:09.4]} 23. Rf1 {[%clk 0:02:47.6]}
23... Ra7 {[%clk 0:02:10.5]} 24. Rxa7 {[%clk 0:02:21.3]} 24... Bxa7 {[%clk
0:02:10.4]} 25. c5 {[%clk 0:02:21.2]} 25... f5 {[%clk 0:01:33]} 26. c6 {[%clk
0:02:01.5]} 26... Bb8 {[%clk 0:01:25.8]} 27. Nd7 {[%clk 0:01:32.9]} 27... Rc8
{[%clk 0:01:26.8]} 28. Rc1 {[%clk 0:01:34.1]} 28... Bc7 {[%clk 0:01:16]} 29. Nc5
{[%clk 0:01:03.8]} 29... Kf7 {[%clk 0:01:15]} 30. Nb7 {[%clk 0:01:00.3]} 30...
Kf6 {[%clk 0:01:02.5]} 31. Rc4 {[%clk 0:00:46.8]} 31... e5 {[%clk 0:01:00.5]}
32. Nc5 {[%clk 0:00:20.3]} 32... e4 {[%clk 0:00:51.8]} 33. g4 {[%clk 0:00:20.6]}
33... fxg4 {[%clk 0:00:46]} 34. Nxe4+ {[%clk 0:00:21.2]} 34... Kf5 {[%clk
0:00:42.9]} 35. Nd2 {[%clk 0:00:17.8]} 35... Bf4 {[%clk 0:00:41.1]} 36. Rc5+
{[%clk 0:00:15.7]} 36... Ke6 {[%clk 0:00:34.8]} 37. Ne4 {[%clk 0:00:17.3]} 37...
g3 {[%clk 0:00:29.2]} 38. Rc1 {[%clk 0:00:14.6]} 38... Kf5 {[%clk 0:00:28.5]}
39. Nxg3+ {[%clk 0:00:13.3]} 39... Bxg3 {[%clk 0:00:29.3]} 40. Rc5+ {[%clk
0:00:15.1]} 40... Kg4 {[%clk 0:00:28.2]} 41. Rxa5 {[%clk 0:00:15.5]} 41... Rxc6
{[%clk 0:00:28.2]} 42. Rb5 {[%clk 0:00:16.8]} 42... Bd6 {[%clk 0:00:28.3]} 43.
a4 {[%clk 0:00:17.8]} 43... bxa3 {[%clk 0:00:28.7]} 44. bxa3 {[%clk 0:00:19.2]}
44... Bxa3 {[%clk 0:00:29.6]} 45. Ka2 {[%clk 0:00:20.2]} 45... Be7 {[%clk
0:00:30.2]} 46. Kb3 {[%clk 0:00:22.1]} 46... Bg5 {[%clk 0:00:31.1]} 47. Rb4+
{[%clk 0:00:22.1]} 47... Kxh5 {[%clk 0:00:32.1]} 48. Rc4 {[%clk 0:00:24]} 48...
Rxc4 {[%clk 0:00:32.7]} 49. Kxc4 {[%clk 0:00:25.9]} 49... Kg4 {[%clk 0:00:34.2]}
50. Kd3 {[%clk 0:00:27.8]} 50... Kg3 {[%clk 0:00:35.7]} 51. Ke2 {[%clk
0:00:29.7]} 51... Kg2 {[%clk 0:00:37.2]} 0-1

[Event "*** Qualifier 3: Titled Tuesday 3|2 Blitz"]
[Site "Chess.com"]
[Date "2017.04.18"]
[Round "6"]
[White "Konavets"]
[Black "Rodalquilar"]
[Result "0-1"]
[WhiteElo "2591"]
[BlackElo "2547"]
[TimeControl "180+2"]
[EndTime "14:20:38 PDT"]
[Termination "Rodalquilar won by checkmate"]

1. e4 {[%clk 0:03:02]} 1... e5 {[%clk 0:03:00.7]} 2. Nf3 {[%clk 0:03:02.8]} 2...
Nc6 {[%clk 0:03:02.1]} 3. Bb5 {[%clk 0:03:04.5]} 3... a6 {[%clk 0:03:03.1]} 4.
O-O {[%clk 0:02:59.8]} 4... axb5 {[%clk 0:03:02.9]} 5. d4 {[%clk 0:02:46.6]}
5... exd4 {[%clk 0:03:00.5]} 6. Nxd4 {[%clk 0:02:47.3]} 6... Nxd4 {[%clk
0:02:30.9]} 7. Qxd4 {[%clk 0:02:49.2]} 7... d6 {[%clk 0:02:32.4]} 8. Nc3 {[%clk
0:02:50]} 8... c6 {[%clk 0:02:22.4]} 9. Bf4 {[%clk 0:02:49.8]} 9... Be6 {[%clk
0:01:50.1]} 10. Rad1 {[%clk 0:02:13.5]} 10... Nf6 {[%clk 0:01:02.9]} 11. a3
{[%clk 0:02:04.7]} 11... Be7 {[%clk 0:01:00.6]} 12. h3 {[%clk 0:01:56.6]} 12...
O-O {[%clk 0:01:01.2]} 13. Bg5 {[%clk 0:01:53.6]} 13... h6 {[%clk 0:01:00.8]}
14. Bh4 {[%clk 0:01:54.3]} 14... Nd7 {[%clk 0:00:46.9]} 15. Bg3 {[%clk
0:01:52.1]} 15... Qb6 {[%clk 0:00:44.6]} 16. Qd2 {[%clk 0:01:49.6]} 16... Ne5
{[%clk 0:00:45.7]} 17. Kh1 {[%clk 0:01:49.3]} 17... Nc4 {[%clk 0:00:45.6]} 18.
Qc1 {[%clk 0:01:50.7]} 18... Bf6 {[%clk 0:00:39.8]} 19. Rd3 {[%clk 0:01:51.5]}
19... Rfd8 {[%clk 0:00:38.4]} 20. f4 {[%clk 0:01:51.2]} 20... b4 {[%clk
0:00:37]} 21. axb4 {[%clk 0:01:45.9]} 21... Qxb4 {[%clk 0:00:38.9]} 22. e5
{[%clk 0:01:47.4]} 22... dxe5 {[%clk 0:00:35.7]} 23. Ne4 {[%clk 0:01:48.7]}
23... Be7 {[%clk 0:00:27.6]} 24. Rb3 {[%clk 0:01:46.7]} 24... Qa5 {[%clk
0:00:24.8]} 25. Rxb7 {[%clk 0:01:35.7]} 25... Ra7 {[%clk 0:00:25.4]} 26. Rb3
{[%clk 0:01:11.5]} 26... Nd2 {[%clk 0:00:17]} 27. Re3 {[%clk 0:01:03.6]} 27...
Nxe4 {[%clk 0:00:16.8]} 28. Rxe4 {[%clk 0:01:05.5]} 28... Qd2 {[%clk 0:00:15.1]}
29. Rxe5 {[%clk 0:00:57.1]} 29... Qxc1 {[%clk 0:00:15.4]} 30. Rxc1 {[%clk
0:00:59]} 30... Bf6 {[%clk 0:00:14.2]} 31. Rc5 {[%clk 0:00:58.6]} 31... Bxb2
{[%clk 0:00:12.7]} 32. Rb1 {[%clk 0:00:59.8]} 32... Bd4 {[%clk 0:00:10.7]} 33.
Rd1 {[%clk 0:00:58.1]} 33... Bxc5 {[%clk 0:00:08.7]} 34. Rxd8+ {[%clk 0:01:00]}
34... Kh7 {[%clk 0:00:10.1]} 35. Bh4 {[%clk 0:01:01.9]} 35... Ra1+ {[%clk
0:00:09.6]} 36. Kh2 {[%clk 0:01:01.6]} 36... Bg1+ {[%clk 0:00:11.2]} 37. Kh1
{[%clk 0:01:00.5]} 37... Bf2+ {[%clk 0:00:11.7]} 38. Kh2 {[%clk 0:01:02]} 38...
Bxh4 {[%clk 0:00:13]} 39. Rd6 {[%clk 0:01:03.4]} 39... Bf2 {[%clk 0:00:13.2]}
40. Rxc6 {[%clk 0:01:03.4]} 40... Bg1+ {[%clk 0:00:14.4]} 41. Kg3 {[%clk
0:01:04.9]} 41... Ra3+ {[%clk 0:00:15.7]} 42. c3 {[%clk 0:01:05]} 42... Bd4
{[%clk 0:00:16.7]} 43. Kh2 {[%clk 0:01:05.4]} 43... Rxc3 {[%clk 0:00:17.7]} 44.
Rd6 {[%clk 0:01:06.9]} 44... Be3 {[%clk 0:00:18.5]} 45. Rd8 {[%clk 0:01:04.8]}
45... Bxf4+ {[%clk 0:00:19.2]} 46. Kg1 {[%clk 0:01:05.5]} 46... Bg3 {[%clk
0:00:20.5]} 47. Rd1 {[%clk 0:01:06.4]} 47... Rc2 {[%clk 0:00:21.6]} 48. h4
{[%clk 0:01:07.1]} 48... Bd5 {[%clk 0:00:21.8]} 49. h5 {[%clk 0:01:08.5]} 49...
Rxg2+ {[%clk 0:00:21.9]} 50. Kf1 {[%clk 0:01:09.9]} 50... Rf2+ {[%clk
0:00:21.9]} 51. Kg1 {[%clk 0:01:11.3]} 51... Rf5 {[%clk 0:00:21.8]} 52. Rb1
{[%clk 0:01:09.3]} 52... Bf2+ {[%clk 0:00:23]} 53. Kf1 {[%clk 0:01:09.5]} 53...
Bd4+ {[%clk 0:00:22.2]} 54. Ke2 {[%clk 0:01:10.7]} 54... Be4 {[%clk 0:00:23.1]}
55. Rb8 {[%clk 0:01:10.8]} 55... Rf2+ {[%clk 0:00:23.2]} 56. Ke1 {[%clk
0:01:12.3]} 56... Rh2 {[%clk 0:00:24.1]} 57. Re8 {[%clk 0:01:12]} 57... Bf3
{[%clk 0:00:21]} 58. Kf1 {[%clk 0:01:07.3]} 58... Rh1# {[%clk 0:00:20.5]} 0-1

[Event "*** Qualifier 3: Titled Tuesday 3|2 Blitz"]
[Site "Chess.com"]
[Date "2017.04.18"]
[Round "6"]
[White "GMSAGOR"]
[Black "MITerryble"]
[Result "0-1"]
[WhiteElo "2086"]
[BlackElo "2649"]
[TimeControl "180+2"]
[EndTime "14:20:41 PDT"]
[Termination "MITerryble won by resignation"]

1. e4 {[%clk 0:03:02]} 1... e6 {[%clk 0:03:01]} 2. d4 {[%clk 0:03:02.5]} 2... d5
{[%clk 0:03:02.4]} 3. Nd2 {[%clk 0:03:04.2]} 3... Be7 {[%clk 0:03:03.4]} 4. Bd3
{[%clk 0:03:04.5]} 4... c5 {[%clk 0:03:04.1]} 5. Ngf3 {[%clk 0:03:04.6]} 5...
Nf6 {[%clk 0:03:04]} 6. dxc5 {[%clk 0:03:05.7]} 6... dxe4 {[%clk 0:03:04.9]} 7.
Nxe4 {[%clk 0:03:04.9]} 7... Nxe4 {[%clk 0:03:06]} 8. Bxe4 {[%clk 0:03:06.5]}
8... Qxd1+ {[%clk 0:03:07.3]} 9. Kxd1 {[%clk 0:03:08.4]} 9... Bxc5 {[%clk
0:03:08.8]} 10. Ke2 {[%clk 0:03:08.5]} 10... Nd7 {[%clk 0:03:10.1]} 11. c4
{[%clk 0:03:06.4]} 11... Ke7 {[%clk 0:03:01.2]} 12. a3 {[%clk 0:03:07.1]} 12...
a5 {[%clk 0:03:01.8]} 13. b3 {[%clk 0:03:08.1]} 13... Rd8 {[%clk 0:02:46.7]} 14.
Bb2 {[%clk 0:03:09]} 14... Nf6 {[%clk 0:02:47.9]} 15. Bc2 {[%clk 0:03:04.9]}
15... b6 {[%clk 0:02:48.9]} 16. h3 {[%clk 0:03:05]} 16... Bb7 {[%clk 0:02:49.9]}
17. Rhd1 {[%clk 0:03:03.3]} 17... Ne4 {[%clk 0:02:47.1]} 18. Bxe4 {[%clk
0:02:59.6]} 18... Bxe4 {[%clk 0:02:47.5]} 19. Bxg7 {[%clk 0:02:50.1]} 19... Rg8
{[%clk 0:02:42.7]} 20. Bd4 {[%clk 0:02:48.4]} 20... Rxg2 {[%clk 0:02:32.1]} 21.
Bxc5+ {[%clk 0:02:36.2]} 21... bxc5 {[%clk 0:02:34]} 22. Ne5 {[%clk 0:02:32.7]}
22... f6 {[%clk 0:02:05.1]} 23. Nd3 {[%clk 0:02:22.4]} 23... Rc8 {[%clk
0:02:01.9]} 24. Ke3 {[%clk 0:02:05.8]} 24... Bf5 {[%clk 0:01:50.4]} 25. Rg1
{[%clk 0:01:43.2]} 25... Rxg1 {[%clk 0:01:30.2]} 26. Rxg1 {[%clk 0:01:45.1]}
26... Kf7 {[%clk 0:01:32.1]} 27. h4 {[%clk 0:01:41.5]} 27... e5 {[%clk
0:01:33.3]} 28. Rc1 {[%clk 0:01:34.3]} 28... Kg6 {[%clk 0:01:09.9]} 29. b4
{[%clk 0:00:58.3]} 29... cxb4 {[%clk 0:00:56.6]} 30. axb4 {[%clk 0:01:00.2]}
30... Rd8 {[%clk 0:00:57.9]} 31. Nb2 {[%clk 0:00:42.4]} 31... axb4 {[%clk
0:00:57.4]} 32. c5 {[%clk 0:00:44]} 32... b3 {[%clk 0:00:49.9]} 33. Rc3 {[%clk
0:00:42.2]} 33... Be6 {[%clk 0:00:50]} 34. c6 {[%clk 0:00:38]} 34... Kf7 {[%clk
0:00:40.8]} 35. Nd3 {[%clk 0:00:36.4]} 35... Rc8 {[%clk 0:00:35.3]} 36. Kd2
{[%clk 0:00:34.5]} 36... Ke7 {[%clk 0:00:33.1]} 37. Nc5 {[%clk 0:00:20.6]} 37...
Rxc6 {[%clk 0:00:33]} 38. Nxb3 {[%clk 0:00:20.5]} 38... Rxc3 {[%clk 0:00:32.8]}
39. Kxc3 {[%clk 0:00:21.9]} 39... Bxb3 {[%clk 0:00:34.3]} 40. Kxb3 {[%clk
0:00:23.8]} 40... Ke6 {[%clk 0:00:23.6]} 41. Kc3 {[%clk 0:00:25.7]} 41... Kf5
{[%clk 0:00:24.2]} 42. Kd3 {[%clk 0:00:25]} 42... Kf4 {[%clk 0:00:22.6]} 43. h5
{[%clk 0:00:21.9]} 43... h6 {[%clk 0:00:23.2]} 0-1

[Event "*** Qualifier 3: Titled Tuesday 3|2 Blitz"]
[Site "Chess.com"]
[Date "2017.04.18"]
[Round "6"]
[White "SabinaFoisor"]
[Black "Malev212"]
[Result "1/2-1/2"]
[WhiteElo "2247"]
[BlackElo "2433"]
[TimeControl "180+2"]
[EndTime "14:20:50 PDT"]
[Termination "Game drawn by repetition"]

1. d4 {[%clk 0:03:02]} 1... d5 {[%clk 0:02:57]} 2. c4 {[%clk 0:03:02.7]} 2... e6
{[%clk 0:02:58.4]} 3. Nc3 {[%clk 0:03:02.2]} 3... a6 {[%clk 0:02:59.1]} 4. Nf3
{[%clk 0:02:59.1]} 4... Be7 {[%clk 0:02:58.6]} 5. cxd5 {[%clk 0:02:56.4]} 5...
exd5 {[%clk 0:02:58.8]} 6. Bf4 {[%clk 0:02:56.9]} 6... Nf6 {[%clk 0:02:59.4]} 7.
e3 {[%clk 0:02:55.6]} 7... O-O {[%clk 0:02:59.9]} 8. Bd3 {[%clk 0:02:56.4]} 8...
Nh5 {[%clk 0:03:00]} 9. Be5 {[%clk 0:02:25.6]} 9... Nc6 {[%clk 0:03:00.2]} 10.
O-O {[%clk 0:02:17]} 10... g6 {[%clk 0:02:59.2]} 11. Rc1 {[%clk 0:02:14.5]}
11... Nxe5 {[%clk 0:02:45.8]} 12. Nxe5 {[%clk 0:02:09.9]} 12... c6 {[%clk
0:02:46.3]} 13. a3 {[%clk 0:02:06.5]} 13... Bd6 {[%clk 0:02:45.1]} 14. f4 {[%clk
0:02:04.9]} 14... Qe7 {[%clk 0:02:38.1]} 15. Qd2 {[%clk 0:01:46.3]} 15... Ng7
{[%clk 0:02:28.1]} 16. Rce1 {[%clk 0:01:42.6]} 16... f6 {[%clk 0:02:14.6]} 17.
Nf3 {[%clk 0:01:42]} 17... Qc7 {[%clk 0:02:11.2]} 18. Rc1 {[%clk 0:01:38.2]}
18... Qb8 {[%clk 0:02:08.8]} 19. Na4 {[%clk 0:01:36.6]} 19... Bc7 {[%clk
0:02:00.6]} 20. Nc5 {[%clk 0:01:36.1]} 20... Re8 {[%clk 0:01:59.9]} 21. b4
{[%clk 0:01:34.4]} 21... b6 {[%clk 0:01:52.5]} 22. Nb3 {[%clk 0:01:33.3]} 22...
Bd7 {[%clk 0:01:48.8]} 23. a4 {[%clk 0:01:33]} 23... Qd8 {[%clk 0:01:49.4]} 24.
a5 {[%clk 0:01:31.9]} 24... bxa5 {[%clk 0:01:48.2]} 25. bxa5 {[%clk 0:01:30.6]}
25... Rb8 {[%clk 0:01:44.4]} 26. Rb1 {[%clk 0:01:28.9]} 26... Bc8 {[%clk
0:01:42.7]} 27. Rfc1 {[%clk 0:01:26.6]} 27... Qd6 {[%clk 0:01:39.5]} 28. Nc5
{[%clk 0:01:21.6]} 28... Rxb1 {[%clk 0:01:29.8]} 29. Rxb1 {[%clk 0:01:21.9]}
29... Nf5 {[%clk 0:01:25.9]} 30. Bxf5 {[%clk 0:01:17.6]} 30... Bxf5 {[%clk
0:01:26.3]} 31. Rb7 {[%clk 0:01:17.2]} 31... Bc8 {[%clk 0:01:20.6]} 32. Rb3
{[%clk 0:01:16.2]} 32... g5 {[%clk 0:01:14.2]} 33. fxg5 {[%clk 0:01:12.8]} 33...
fxg5 {[%clk 0:01:14.9]} 34. Nd3 {[%clk 0:01:09.1]} 34... Bf5 {[%clk 0:00:46.6]}
35. Nde5 {[%clk 0:00:51.9]} 35... g4 {[%clk 0:00:44.5]} 36. Nh4 {[%clk
0:00:52.2]} 36... Be4 {[%clk 0:00:40]} 37. Qe2 {[%clk 0:00:51.9]} 37... h5
{[%clk 0:00:38.7]} 38. Rb7 {[%clk 0:00:50.7]} 38... Rxe5 {[%clk 0:00:32.2]} 39.
dxe5 {[%clk 0:00:50.4]} 39... Qxe5 {[%clk 0:00:33.6]} 40. g3 {[%clk 0:00:46.1]}
40... Bxa5 {[%clk 0:00:24.8]} 41. Qxa6 {[%clk 0:00:45.7]} 41... Qa1+ {[%clk
0:00:23.2]} 42. Qf1 {[%clk 0:00:46.3]} 42... Qxf1+ {[%clk 0:00:22.2]} 43. Kxf1
{[%clk 0:00:47.1]} 43... c5 {[%clk 0:00:23.3]} 44. Ng2 {[%clk 0:00:45.6]} 44...
Bd2 {[%clk 0:00:15.4]} 45. Ke2 {[%clk 0:00:44.7]} 45... Bc1 {[%clk 0:00:14.3]}
46. Nf4 {[%clk 0:00:44.4]} 46... c4 {[%clk 0:00:14.7]} 47. Rc7 {[%clk
0:00:44.5]} 47... Bf3+ {[%clk 0:00:12]} 48. Kf2 {[%clk 0:00:44.9]} 48... Bd2
{[%clk 0:00:12.7]} 49. Nxh5 {[%clk 0:00:40.6]} 49... c3 {[%clk 0:00:12.8]} 50.
Nf6+ {[%clk 0:00:40.6]} 50... Kf8 {[%clk 0:00:12.9]} 51. Rd7 {[%clk 0:00:39.5]}
51... c2 {[%clk 0:00:12.4]} 52. Nh7+ {[%clk 0:00:40.1]} 52... Ke8 {[%clk
0:00:12.6]} 53. Nf6+ {[%clk 0:00:41.4]} 53... Kf8 {[%clk 0:00:13.6]} 54. Nh7+
{[%clk 0:00:42.5]} 54... Ke8 {[%clk 0:00:14.4]} 55. Nf6+ {[%clk 0:00:43.7]}
55... Kf8 {[%clk 0:00:15.3]} 56. Nh7+ {[%clk 0:00:44]} 1/2-1/2

[Event "*** Qualifier 3: Titled Tuesday 3|2 Blitz"]
[Site "Chess.com"]
[Date "2017.04.18"]
[Round "6"]
[White "Cayse"]
[Black "rasmussvane"]
[Result "1-0"]
[WhiteElo "2641"]
[BlackElo "2529"]
[TimeControl "180+2"]
[EndTime "14:20:51 PDT"]
[Termination "Cayse won by resignation"]

1. e4 {[%clk 0:03:02]} 1... c6 {[%clk 0:03:00.7]} 2. d4 {[%clk 0:03:02.8]} 2...
d5 {[%clk 0:03:02.3]} 3. e5 {[%clk 0:03:04.2]} 3... Bf5 {[%clk 0:03:02.5]} 4.
Nf3 {[%clk 0:03:05.3]} 4... e6 {[%clk 0:03:03.8]} 5. Be2 {[%clk 0:03:06.6]} 5...
Ne7 {[%clk 0:03:01.4]} 6. O-O {[%clk 0:03:07]} 6... Bg6 {[%clk 0:03:02.5]} 7. a4
{[%clk 0:03:06.5]} 7... c5 {[%clk 0:02:51.7]} 8. dxc5 {[%clk 0:03:00.9]} 8...
Nec6 {[%clk 0:02:52.7]} 9. Be3 {[%clk 0:02:52.2]} 9... Nd7 {[%clk 0:02:53.8]}
10. Bb5 {[%clk 0:02:50.7]} 10... Bxc5 {[%clk 0:02:44.1]} 11. Bxc5 {[%clk
0:02:49.4]} 11... Nxc5 {[%clk 0:02:45.5]} 12. Nd4 {[%clk 0:02:47.9]} 12... Qc7
{[%clk 0:02:44.2]} 13. Bxc6+ {[%clk 0:02:26.8]} 13... bxc6 {[%clk 0:02:45.2]}
14. Re1 {[%clk 0:02:26.3]} 14... O-O {[%clk 0:02:45]} 15. Nd2 {[%clk 0:02:26.4]}
15... Rab8 {[%clk 0:02:43.8]} 16. b3 {[%clk 0:02:24.5]} 16... Nd7 {[%clk
0:02:33.6]} 17. N2f3 {[%clk 0:02:01.6]} 17... a6 {[%clk 0:02:27.4]} 18. Nh4
{[%clk 0:01:56.9]} 18... Nxe5 {[%clk 0:02:11.9]} 19. Qe2 {[%clk 0:01:57.2]}
19... Nd7 {[%clk 0:02:05.4]} 20. Nxg6 {[%clk 0:01:54.9]} 20... hxg6 {[%clk
0:02:05.8]} 21. Qxa6 {[%clk 0:01:56.4]} 21... Rfc8 {[%clk 0:01:57.3]} 22. Qe2
{[%clk 0:01:48.4]} 22... e5 {[%clk 0:01:52]} 23. Nf3 {[%clk 0:01:48.4]} 23...
Re8 {[%clk 0:01:48]} 24. Rad1 {[%clk 0:01:32.9]} 24... e4 {[%clk 0:01:39.3]} 25.
Nd4 {[%clk 0:01:33.7]} 25... Nf6 {[%clk 0:01:39.8]} 26. h3 {[%clk 0:01:33.4]}
26... c5 {[%clk 0:01:29.8]} 27. Nb5 {[%clk 0:01:33.8]} 27... Qc6 {[%clk
0:01:30.8]} 28. c3 {[%clk 0:01:31.9]} 28... g5 {[%clk 0:01:18.2]} 29. Qd2 {[%clk
0:01:27.5]} 29... Re5 {[%clk 0:01:16.5]} 30. b4 {[%clk 0:01:23.5]} 30... Ra8
{[%clk 0:01:11.6]} 31. Ra1 {[%clk 0:01:20.7]} 31... Rf5 {[%clk 0:00:55.6]} 32.
bxc5 {[%clk 0:01:17.6]} 32... Qxc5 {[%clk 0:00:56.4]} 33. Nd4 {[%clk 0:01:18.2]}
33... Re5 {[%clk 0:00:56.6]} 34. a5 {[%clk 0:01:18.4]} 34... Ra6 {[%clk
0:00:50.9]} 35. Qe2 {[%clk 0:01:12.4]} 35... Qc4 {[%clk 0:00:48.7]} 36. Ra3
{[%clk 0:00:44.6]} 36... Qxe2 {[%clk 0:00:41]} 37. Rxe2 {[%clk 0:00:45.2]} 37...
Re8 {[%clk 0:00:39.2]} 38. Rb2 {[%clk 0:00:45.5]} 38... Rea8 {[%clk 0:00:39]}
39. Rb5 {[%clk 0:00:46.1]} 39... g4 {[%clk 0:00:28]} 40. hxg4 {[%clk 0:00:40.6]}
40... Nxg4 {[%clk 0:00:29.2]} 41. Rxd5 {[%clk 0:00:41.1]} 41... Rb8 {[%clk
0:00:30.4]} 42. Rb3 {[%clk 0:00:40.6]} 42... Rxb3 {[%clk 0:00:25.6]} 43. Nxb3
{[%clk 0:00:41.2]} 43... Rc6 {[%clk 0:00:26.4]} 44. Nc5 {[%clk 0:00:39.6]} 44...
e3 {[%clk 0:00:23.5]} 45. fxe3 {[%clk 0:00:34.1]} 45... Nxe3 {[%clk 0:00:24.8]}
46. Rd8+ {[%clk 0:00:34.9]} 46... Kh7 {[%clk 0:00:25]} 47. a6 {[%clk 0:00:36.4]}
47... Nc4 {[%clk 0:00:17.8]} 48. a7 {[%clk 0:00:35]} 48... Nb6 {[%clk
0:00:19.1]} 49. Nd7 {[%clk 0:00:34.7]} 1-0